Cogmind - Beta 16 @@@ ROGUE MODE // 2025.11.23 @ 07:54:51 Player: Mozco Result: Destroyed by 8R-AWN with 8R-AWN's Boregun Performance ------------- Evolutions (0) 0 Regions Visited (3) 600 Robots Destroyed (24) 120 Value Destroyed (635) 635 Prototype IDs (37) 740 Alien Tech Used (0) 0 Bonus (360) 360 TOTAL SCORE: 2455 Bonus ------- Follower Combat Kills 60 Aligned with FarCom 300 Cogmind --------- Core Integrity 0/250 Matter 146/300 Energy 250/250 System Corruption 0% Temperature Cool (0) Movement Treading (160) Location -10/Exiles Parts ------- > --- POWER (1) -------- Ion Engine > --- PROPULSION (2) --- Light Treads Light Treads > --- UTILITY (2) ------ Light Armor Plating Light Armor Plating > --- WEAPON (2) ------- Assault Rifle Heavy Assault Rifle > --- INVENTORY (5) ---- Guided Plasma Cannon Grenade Launcher Peak State ------------ > --- POWER ------------ Ion Engine > --- PROPULSION ------- Light Treads Light Treads > --- UTILITY ---------- Heat Sink Large Storage Unit > --- WEAPON ----------- Beam Cannon Grenade Launcher > --- INVENTORY -------- Ion Engine Light Treads Light Treads Improved Heat Sink Huge Storage Unit Improved Terrain Scanner Light Armor Plating Light Armor Plating Decoy Drone Bay Particle Gun Guided Plasma Cannon Assault Rifle Heavy Assault Rifle Datajack [Rating: 11] Favorites ----------- Power Ion Engine Engine Ion Engine Propulsion Light Treads Treads Light Treads Utility Heat Sink Device Heat Sink Storage Large Storage Unit Protection Light Armor Plating Weapon Beam Cannon Energy Gun Small Laser Energy Cannon Beam Cannon Ballistic Gun Assault Rifle Launcher Grenade Launcher Special Melee Weapon Datajack Build | -11 -10 -10 -10 ------- Run | Yrd Mat Min Exi Slots Evolved . | . . . . Power . | . . . . Propulsion . | . . . . Utility . | . . . . Weapon . | . . . . Parts Attached 21 | 6 10 . 5 Power 4 | 1 3 . . Engine 4 | 1 3 . . Core . | . . . . Reactor . | . . . . Propulsion 3 | 2 1 . . Treads 3 | 2 1 . . Leg . | . . . . Wheel . | . . . . Hover . | . . . . Flight . | . . . . Utility 6 | 1 3 . 2 Device 2 | . 2 . . Storage 2 | 1 1 . . Processor . | . . . . Hackware . | . . . . Protection 2 | . . . 2 Artifact . | . . . . Weapon 8 | 2 3 . 3 Energy Gun 1 | 1 . . . Energy Cannon 2 | . 2 . . Ballistic Gun 3 | 1 . . 2 Ballistic Cannon . | . . . . Launcher 1 | . 1 . . Special Weapon . | . . . . Impact Weapon . | . . . . Slashing Weapon . | . . . . Piercing Weapon . | . . . . Special Melee Weapon 1 | . . . 1 Unidentified Prototypes . | . . . . Parts Lost 2 | . 2 . . Power 2 | . 2 . . Propulsion . | . . . . Utility . | . . . . Weapon . | . . . . Highest Loss Streak 1 | . 1 . . To Critical Strikes . | . . . . Average Backups 8 | 1 7 12 8 Power 1 | . 1 1 1 Propulsion 1 | . 1 1 1 Utility 2 | . . 4 2 Weapon 3 | . 2 4 2 Tool/Special . | . . . . Unused Backups 16 | . 1 2 13 Power 5 | . 1 . 4 Propulsion 1 | . . . 1 Utility 6 | . . 1 5 Weapon 4 | . . 1 3 Tool/Special . | . . . . Average Slot Usage (%) 95 | . 89 100 99 Engine 13 | . 13 14 14 Treads 25 | . 20 28 28 Device 9 | . 11 14 6 Storage 10 | . 14 14 6 Protection 6 | . . . 15 Energy Gun 1 | . 3 . . Energy Cannon 10 | . 13 14 6 Ballistic Gun 4 | . 3 . 8 Launcher 9 | . 8 14 8 Special Melee Weapon 1 | . . . 4 Peak Build Rating 11 | 6 9 10 11 Average Rating 8 | 4 7 8 9 On Entrance 6 | . 6 8 10 Avg Prop Armor Cover (%) . | . . . . Naked Turns . | . . . . Heaviest Build 32 | 11 32 32 32 Greatest Support 40 | 40 40 40 40 Greatest Overweight (x) 1 | . 1 . . Average Overweight (x) . | . . . . Largest Inventory Capacity 15 | 8 15 15 15 Average Capacity 11 | 7 10 15 9 Most Carried 15 | 2 10 15 15 Average Carried 8 | 1 7 12 8 Final Capacity 15 | 8 15 15 5 Final Carried 15 | 2 9 15 2 Class Distribution -------------------- 60% | Commander-Mutant 39% | Mutant Dominant Class ---------------- Mutant | -10/Materials Commander-Mutant | -10/Mines Commander-Mutant | -10/Exiles Resources | -11 -10 -10 -10 ----------- Run | Yrd Mat Min Exi Matter Collected 537 | 257 210 10 60 Remotely . | . . . . Salvage Created 777 | . 748 29 . Parts 45 | . 41 4 . Haulers Intercepted 1 | . 1 . . Recyclers Shooed 2 | . 2 . . Parts Field Recycled . | . . . . Retrieved Matter . | . . . . Parts Self-Destructed . | . . . . Prevented . | . . . . Parts Restored . | . . . . Kills | -11 -10 -10 -10 ------- Run | Yrd Mat Min Exi Combat Hostiles Destroyed 21 | . 17 . 4 Guns 9 | . 9 . . Cannons 7 | . 7 . . AOE 5 | . 1 . 4 Classes Destroyed 9 | . 7 1 1 Worker 1 | . 1 . . Builder 1 | . . 1 . Tunneler 1 | . 1 . . Hauler 1 | . 1 . . Operator 2 | . 2 . . Watcher 1 | . 1 . . Swarmer 3 | . 3 . . Grunt 14 | . 14 . . Assembled 4 | . . . 4 Best Kill Streak 10 | . 10 1 3 Combat Bots Only 9 | . 9 . 3 Max Kills in Single Turn 2 | . 1 1 2 Gunslinging . | . . . . Exploded 2 | . 1 . 2 Melee . | . . . . Uniques/NPCs Destroyed . | . . . . Combat | -11 -10 -10 -10 -------- Run | Yrd Mat Min Exi Hostile Shots Fired 132 | . 84 . 48 Missed 40 | . 25 . 15 Hits 92 | . 59 . 33 Projectile 92 | . 59 . 33 Critical Strikes 8 | . 2 . 6 Damage Taken 1234 | . 720 . 514 Core 263 | . 143 . 120 Absorbed by Shields . | . . . . Regen/Repaired (Parts) 247 | . 247 . . Core Remaining (%) 100 | 100 . . . Volleys Fired 103 | . 77 1 25 Largest 2 | . 2 1 2 Hottest 120 | . 120 60 43 Shots Fired 143 | . 109 1 33 Gun 76 | . 48 . 28 Cannon 58 | . 57 1 . Launcher 9 | . 4 . 5 Special . | . . . . Kinetic 52 | . 24 . 28 Thermal 82 | . 81 1 . Explosive 9 | . 4 . 5 Electromagnetic . | . . . . Robot Hit Streak 18 | . 18 2 3 Robot Miss Streak 5 | . 2 . 5 Penetration Max . | . . . . Secondary Targets 2 | . 2 . . Max Gunslinging Chain 1 | . 1 . . Shots Hit Robots 95 | . 78 1 16 Core Hits 43 | . 33 1 9 Critical Kills . | . . . . Critical Parts Destroyed . | . . . . Critical Strikes . | . . . . Melee Attacks 6 | . . . 6 Impact . | . . . . Slashing . | . . . . Piercing . | . . . . Sneak Attacks 4 | . . . 4 Combat Hostiles . | . . . . Follow-up Attacks . | . . . . Damage Inflicted 1757 | . 1306 44 407 Guns 617 | . 430 . 187 Cannons 719 | . 701 18 . Explosions 393 | . 173 . 220 Melee . | . . . . Ramming 28 | . 2 26 . Kinetic 386 | . 199 . 187 Thermal 950 | . 932 18 . Explosive 393 | . 173 . 220 Electromagnetic . | . . . . Impact . | . . . . Slashing . | . . . . Piercing . | . . . . Highest Corruption . | . . . . Average Corruption . | . . . . Corruption Purged . | . . . . Corruption Blocked . | . . . . Overload Shots . | . . . . Overflow Damage 19 | . 2 . 17 Projectiles 2 | . 2 . . Explosions 17 | . . . 17 Melee . | . . . . Knockbacks . | . . . . Impact . | . . . . Kinetic . | . . . . Secondary . | . . . . Self-Inflicted Damage . | . . . . Shots . | . . . . Rammed 5 | . 2 3 . Targets Rammed 5 | . 2 3 . Kicked . | . . . . Crushed . | . . . . Highest Temperature 381 | . 381 . 6 Average Temperature 101 | . 109 . 2 Received Heat Transfer 393 | . 393 . . Effects 4 | . 4 . . Shutdowns 1 | . 1 . . Energy Bleed 2 | . 2 . . Short Circuit 1 | . 1 . . Siege Activations . | . . . . Martial Activations . | . . . . Shielding Activations . | . . . . Robots Disrupted . | . . . . Combat Hostiles . | . . . . Robots Corrupted . | . . . . Combat Hostiles . | . . . . Parts Fried . | . . . . Impact Corruptions . | . . . . Robots Melted . | . . . . Combat Hostiles . | . . . . Parts Melted 1 | . 1 . . Heat Transferred 2042 | . 2005 37 . Parts Sabotaged . | . . . . Parts Stolen . | . . . . Parts Stripped . | . . . . Power Chain Reactions . | . . . . Alert | -11 -10 -10 -10 ------- Run | Yrd Mat Min Exi Maximum Alert Level 1 | . 1 . . Low Security (%) 99 | 100 99 100 . Level 1 . | . . . . Level 2 . | . . . . Level 3 . | . . . . Level 4 . | . . . . Level 5 . | . . . . High Security . | . . . . Max Security . | . . . . Peak Influence 200 | . 200 58 . Initial . | . . . . Average 38 | . 61 3 . Influence Increases 667 | . 604 63 . Destroy 0b10 Robot/C 380 | . 340 40 . Destroy 0b10 Robot/NC 35 | . 30 5 . Destroy Leader 94 | . 84 10 . Allied During Kill 8 | . . 8 . Successful Hack 30 | . 30 . . Select Force Hacks 30 | . 30 . . Disable Machine 60 | . 60 . . Destroy Structure 30 | . 30 . . Influence Decreases 667 | . 604 63 . Time Decay 497 | . 434 63 . Lost Part 20 | . 20 . . Purge Threat 150 | . 150 . . Squads Dispatched 5 | . 5 . . Investigation 4 | . 4 . . Extermination . | . . . . Reinforcement 1 | . 1 . . Assault . | . . . . Garrison . | . . . . Intercept . | . . . . Searches Triggered . | . . . . Construction Impeded . | . . . . Haulers Reinforced . | . . . . Active Scanning Responses . | . . . . Cargo Convoy Interrupts . | . . . . Stealth | -11 -10 -10 -10 --------- Run | Yrd Mat Min Exi Distress Signals 1 | . 1 . . Communications Jammed . | . . . . Distress Signals . | . . . . Times Spotted 35 | . 25 3 7 Peak Tracking Total 9 | . 6 2 9 Tactical Retreats . | . . . . Traps | -11 -10 -10 -10 ------- Run | Yrd Mat Min Exi Traps Triggered 1 | . 1 . . Indirectly . | . . . . Trap Hack Attempts . | . . . . Triggered . | . . . . Disarmed . | . . . . Reprogrammed . | . . . . Reused . | . . . . Traps Extracted . | . . . . Installed . | . . . . Triggered . | . . . . Machines | -11 -10 -10 -10 ---------- Run | Yrd Mat Min Exi Machines Disabled 7 | . 4 . 3 Max in Single Turn 1 | . 1 . 1 Machines Repaired . | . . . . Machines Dismantled . | . . . . Machines Sabotaged . | . . . . Overloaded Fab Kills . | . . . . Hacking | -11 -10 -10 -10 --------- Run | Yrd Mat Min Exi Machines Accessed 11 | . 8 1 2 Terminals 6 | . 6 . . Fabricators . | . . . . Repair Stations 1 | . 1 . . Recycling Units 1 | . 1 . . Scanalyzers . | . . . . Garrison Access . | . . . . Total Hacks 35 | . 32 1 2 Successful 16 | . 13 1 2 Failed 18 | . 18 . . Catastrophic . | . . . . Database Lockouts 1 | . 1 . . Manual 24 | . 23 . 1 Terminals 25 | . 25 . . Fabricators . | . . . . Repair Stations 4 | . 4 . . Recycling Units 3 | . 3 . . Scanalyzers . | . . . . Garrison Access . | . . . . Terminal Hacks 8 | . 5 1 2 Record 1 | . . . 1 Part Schematic 1 | . 1 . . Robot Analysis 1 | . 1 . . Open Door 1 | . . 1 . Unreport Threat 1 | . 1 . . Locate Traps 1 | . 1 . . Registered Prototypes 1 | . 1 . . Proto ID Catalog 1 | . . . 1 Fabricator Hacks . | . . . . Repair Station Hacks 4 | . 4 . . Scan Component 2 | . 2 . . Repair 2 | . 2 . . Recycling Unit Hacks . | . . . . Scanalyzer . | . . . . Garrison Access Hacks . | . . . . Unauthorized Hacks 4 | . 4 . . Terminals 3 | . 3 . . Assimilate 1 | . 1 . . Botnet 2 | . 2 . . Fabricators . | . . . . Repair Stations . | . . . . Recycling Units 1 | . 1 . . Tunnel 1 | . 1 . . Scanalyzers . | . . . . Garrison Access . | . . . . Data Cores Recovered . | . . . . Used . | . . . . Hacking Detections 8 | . 8 . . Full Trace Events 2 | . 2 . . Feedback Events . | . . . . Feedback Blocked . | . . . . Robot Schematics Acquired . | . . . . Robots Built . | . . . . Authchips . | . . . . Time . | . . . . Total Robot Build Rating . | . . . . Part Schematics Acquired 1 | . 1 . . Parts Built . | . . . . Authchips . | . . . . Time . | . . . . Total Part Build Rating . | . . . . Part Studies Acquired . | . . . . Parts Repaired 2 | . 2 . . Time 52 | . 52 . . Parts Recycled . | . . . . Recycled Matter . | . . . . Retrieved Matter . | . . . . Retrieved Components . | . . . . Parts Scanalyzed . | . . . . Part Schematics Acquired . | . . . . Parts Damaged . | . . . . Bothacking | -11 -10 -10 -10 ------------ Run | Yrd Mat Min Exi Used RIF Installer . | . . . . Robots Hacked 4 | . . . 4 Non-combat 3 | . . . 3 Combat 1 | . . . 1 Robot Hacks Applied 4 | . . . 4 parse_system 4 | . . . 4 Relay Couplers Released . | . . . . Fabnet Peak Effective % . | . . . . Robots Rewired . | . . . . Allies Hacked . | . . . . Hacks Repelled . | . . . . Allies | -11 -10 -10 -10 -------- Run | Yrd Mat Min Exi Total Allies 4 | . 1 3 . Largest Group 4 | . 1 4 4 Highest-Rated Group 50 | . 10 50 50 Highest-Rated Ally 16 | . 10 16 16 Total Orders 3 | . . . 3 STAY 2 | . . . 2 FOLLOW 1 | . . . 1 Ally Attacks 30 | . . 14 16 Total Damage 174 | . . 154 20 Kills 2 | . . 2 . Allies Corrupted . | . . . . Allies Melted . | . . . . Intel | -11 -10 -10 -10 ------- Run | Yrd Mat Min Exi Active Infowar (turns) 82 | . 82 . . Terrain 82 | . 82 . . Robot Analysis Total 1 | . 1 . . Derelict Logs Recovered 1 | . . 1 . Drone Launches . | . . . . Drone Recoveries . | . . . . Exploration | -11 -10 -10 -10 ------------- Run | Yrd Mat Min Exi Turns Passed 3610 | 77 1300 780 1453 Spaces Moved 1913 | 46 559 474 834 Core 6 | 6 . . . Treads 1907 | 40 559 474 834 Legs . | . . . . Wheels . | . . . . Hover . | . . . . Flight . | . . . . Fastest Speed 50 | 50 160 160 160 Average Speed 165 | 145 181 160 160 Slowest Speed 240 | 160 240 160 160 Overloaded Moves . | . . . . Propulsion Burnouts . | . . . . Robots Hopped . | . . . . Potential Cave-ins . | . . . . Cave-ins Triggered . | . . . . Exploration Rate (%) 65 | 3 98 92 69 Regions Visited 3 Branch Regions 2 Pre-discovered Areas 2 | . 1 . 1 Known Exits Taken . | . . . . Unknown Exits Taken 3 | 1 1 1 . Scrap Searched 1 | . . 1 . Spaces Dug 5 | . . . 5 Terrain Destroyed 58 | . 33 . 25 Melee . | . . . . Projectile . | . . . . AOE 58 | . 33 . 25 Terrain Rammed . | . . . . Walls Destroyed . | . . . . Machines Disabled . | . . . . Actions | -11 -10 -10 -10 --------- Run | Yrd Mat Min Exi Total 2201 | 53 732 494 922 Wait 100 | . 66 8 26 Move 1910 | 45 558 473 834 Hop . | . . . . Pick Up 27 | 2 11 7 7 Fast Attach 14 | 6 5 . 3 Attach 3 | . 2 . 1 Detach 2 | . 1 . 1 Swap 7 | . 4 . 3 Drop 24 | . 6 2 16 Fire 103 | . 77 1 25 Melee 6 | . . . 6 Ram . | . . . . Kick . | . . . . Crush 5 | . 2 3 . Escape Stasis . | . . . . Rewire . | . . . . Trap . | . . . . Miscellaneous . | . . . . Route ------- -11/Scrapyard -10/Materials (discovered 5 exits: [*Mat x3] / *Min x2) -10/Mines (discovered 3 exits: [*Mat x2] / *Exi) -10/Exiles (discovered 1 exit: [*Min]) History --------- Turn | Location | Event 51 | -11/Scrapyard | Discovered new exit (range 16) 78 | -11/Scrapyard | Entered Materials 297 | -10/Materials | Destroyed 9 combat bots 325 | -10/Materials | Build established: Mutant 433 | -10/Materials | Discovered new exit (range 13) 605 | -10/Materials | Core integrity fell below 50% 645 | -10/Materials | Discovered new exit (range 9) 758 | -10/Materials | Central database locked down 784 | -10/Materials | Discovered new exit (range 7) 851 | -10/Materials | Discovered new exit (range 15) 1177 | -10/Materials | Discovered new exit (range 7) 1300 | -10/Materials | Repaired Lgt. Treads 1327 | -10/Materials | Repaired Lgt. Treads 1378 | -10/Materials | Entered Mines 1378 | -10/Mines | Accompanied by 1 ally 1382 | -10/Mines | Assisted by bots powering up and referring to "LRC-V3" 1388 | -10/Mines | Discovered new exit (range 15) 1682 | -10/Mines | Build established: Commander-Mutant 1778 | -10/Mines | Joined a pair of Derelicts in attacking an 0b10 outpost 1994 | -10/Mines | Learned Materials emergency access door positions 2049 | -10/Mines | Discovered new exit (range 15) 2055 | -10/Mines | Found the Drone Emporium 2061 | -10/Mines | Found Prototype Device 2121 | -10/Mines | Found a hidden stash of uninstalled traps 2142 | -10/Mines | Deemed a non-threat by the Exiles lab entrance 2142 | -10/Mines | Discovered new exit (range 5) 2158 | -10/Mines | Entered Exiles 2158 | -10/Exiles | Accompanied by 4 allies 2197 | -10/Exiles | Met 8R-AWN 2226 | -10/Exiles | Met EX-HEX 2272 | -10/Exiles | Met EX-BIN 2293 | -10/Exiles | Aligned with FarCom system 2294 | -10/Exiles | Given EX-Vault access code 2331 | -10/Exiles | Opened EX-Vault 2374 | -10/Exiles | Warned to stay clear of 0b10 Research branches 2409 | -10/Exiles | Found Gui. Plasma Cannon 2488 | -10/Exiles | Met EX-DEC 2496 | -10/Exiles | Learned location of Zion (-6) 2774 | -10/Exiles | Discovered new exit (range 14) 3498 | -10/Exiles | Attacked by the Exiles 3596 | -10/Exiles | Core integrity fell below 20% 3611 | -10/Exiles | Destroyed by 8R-AWN with 8R-AWN's Boregun Last Messages --------------- 03602_ Penetrated by HV Slug. 03602_ HV Slug penetrates Wall. 03602_ Penetrated by HV Slug. 03602_ HV Slug penetrates Wall. 03604_ Penetrated by HV Slug. 03604_ HV Slug penetrates Wall. 03604_ Penetrated by HV Slug. 03604_ HV Slug penetrates Wall. 03605_ Wall collapses. 03606_ Penetrated by HV Slug. 03606_ Critical hit (Destroy). 03606_ HV Slug penetrates Wall. 03606_ Penetrated by HV Slug. 03606_ HV Slug penetrates Wall. 03609_ Penetrated by HV Slug. 03609_ HV Slug penetrates Wall. 03611_ HV Slug penetrates Mercenary 1a. 03611_ Mercenary 1a suffers critical hit (Destroy). 03611_ HV Slug penetrates Wall. 03611_ Penetrated by HV Slug. Map ----- +----------------------------------------------------+ | ?????????????????????????????????????????????????? | | ?????????????????????????????????????????????????? | | ?????????????????????????????????????????????????? | | ?????????????????????????????????????????????????? | | ?????????????????????????????????????????????????? | | ??????????####???????????????????????????????????? | | ?????????## #??????????????????????????????????? | | ?????????# ??????????????????????????????????? | | ?????????# < ??????????????????????????????????? | | ?????????# ##????????????????????????????????? | | ?????????# ????????????????????????????????? | | ?????????# #????????????????????????????????? | | ??????????# #????????????????????????????????? | | ??????????# ##???????????????????????????????? | | ???????????# #????????????#######????????????? | | ???????????# ! #######??????#!!! "#????????????? | | ???????????# !! #""##?????# "#????????????? | | ???????????## #?????# "#????????????? | | ????????????##" ##???## ""#????????????# | | ????????????#"" #####" ""#???????????? | | ????????????#### ##" ""#????????????" | | ???????????????## #"" #?????????????"" | | ????????????????#"## ###???????????"" | | ?????????????# ####### #???????????"" | | ???????????????# ;## # #???????? | | ????????????????######;; @ [* # #??????" | | ????????????????# = =g! g # # #?????# | | ???????????????#;! [=%]= = #;#" ##???### | | ???????????????##! */!=! "#?# " #####X# | | ????????????????#! !*[ !!##??# | | ????????????????# !""""""###???#" | | ????????????????##########?????### | | ??????????????????????????????????# % | | ???????????????????????????????????#### | | ??????????????????????????????????????## | | ???????????????????????????????????????## | | ????????????????????????????????????????##" | | ?????????????????????????????????????????#"" | | ????????????????????????????????????????##" | | ????????????????????????????????????????#"" | | ???????????????????????????????????????##""" | | ???????????????????????????????????????#""" | | ???????????????????????????????????????#""" | | ???????????????????????????????????????#"" | | ???????????????????????????????????????#""" | | ???????????????????????????????????????#"" | | ???????????????????????????????????????##"" | | ????????????????????????????????????????#"""" | | ????????????????????????????????????????## | | ?????????????????????????????????????????#" | +----------------------------------------------------+ Best States ------------- Heat Dissipation 35 Energy Generation 10 Energy Capacity 250 Matter Stores 300 Matter Capacity 300 Sight Range 16 Terrain Scan Range 16 Terrain Scan Density 10 Armor Coverage 300 Evasion (%) 40 Recoil Reduction 2 Item Schematics ----------------- Hcp. Storage Unit | -10/Materials | Hacked Robot Schematics ------------------ None Fabricated ------------ Nothing Repaired ---------- Lgt. Treads | 9% | -10/Materials Lgt. Treads | 14% | -10/Materials Studied --------- None Alien Tech Used ----------------- None Achievements -------------- None Challenges ------------ None Game ------ Seed IntegrityXenonSpecial Manual? 0 Play Time 00:18:40 Cumulative 321.3 hours Start 2025.11.23 @ 07:35:44 End 2025.11.23 @ 07:54:51 Sessions 1 Manual Loads 0 Difficulty Rogue Special Mode None Game No. 336 Rogue 332 Adventurer 3 Explorer 1 Win Type - Total 2 Types 2/0/0/0/0/0/0/0/0/0 Lore% 82 Gallery% 78 Achievement% 63 Wizard Run 0 Options --------- Layout 0 ASCII 0 Keyboard 0 Movement Numpad Keybinds 0 Fullscreen 2 Font 18/SmallcapsGlow Map View 76x50 Zoom Use 0% Tactical HUD 1 Map Filters NONE Filters NONE Steam 1 RUN: 89d3287f-f8e0-4b13-9986-b8fbfe1809ff